fUST/lending_fUST_20260204
["ID","MTS","AMOUNT","RATE_DAILY","PERIOD"]
[404454851,1770150638722,-182.88,0.000441,120]
[404454852,1770150638735,-720.0,0.00044658,60]
[404454853,1770150638750,-508.36,0.00044737,120]
[404454854,1770150638764,-150.0,0.00044799,30]
[404454855,1770150638776,-226.88233167,0.00045,120]
[404454856,1770150638801,-1000.0,0.00045,120]
[404454857,1770150638811,-508.36,0.00045485,120]
[404454858,1770150638822,-150.0,0.000456,60]
[404454859,1770150638838,-329.721117,0.000456,60]
[404454860,1770150638855,-160.183731,0.00045809,120]
[404454861,1770150638867,-30000.0,0.00045809,60]
[404454862,1770150638878,-150.0,0.00045851,60]
[404454863,1770150638889,-545.46595,0.00045851,60]
[404454864,1770150638900,-940.931901,0.00045851,60]
[404454865,1770150638911,-1336.397852,0.00045851,60]
[404454866,1770150638921,-1731.863803,0.00045851,60]
[404454867,1770150638935,-2127.329754,0.00045851,60]
[404454868,1770150638946,-2522.795704,0.00045851,60]
[404454869,1770150638956,-2918.261655,0.00045851,60]
[404454870,1770150638967,-150.0,0.00045851,60]
[404454871,1770150638978,-3313.727606,0.00045851,60]
[404454872,1770150638989,-231.56839,0.00045851,60]
[404454873,1770150638999,-3709.193557,0.00045851,60]
[404454874,1770150639010,-313.136781,0.00045851,60]
[404454875,1770150639019,-394.705172,0.00045851,60]
[404454876,1770150639029,-476.273563,0.00045851,60]
[404454877,1770150639040,-557.841954,0.00045851,60]
[404454878,1770150639051,-639.410345,0.00045851,60]
[404454879,1770150639061,-720.978736,0.00045851,60]
[404454880,1770150639071,-802.547127,0.00045851,60]
[404454881,1770150639082,-884.115518,0.00045851,60]
[404454882,1770150639093,-508.36,0.00046232,120]
[404454883,1770150639103,-182.88,0.00046305,120]
[404454884,1770150639112,-508.36,0.0004698,120]
[404454885,1770150639123,-1000.0,0.00047,120]
[404454886,1770150639133,-151.0,0.0004738,120]
[404454887,1770150639144,-198.12741,0.0004738,120]
[404454888,1770150639154,-198.12741,0.0004738,120]
[404454889,1770150639165,-198.12741,0.0004738,120]
[404454890,1770150639176,-198.12741,0.0004738,120]
[404454891,1770150639186,-151.0,0.0004738,120]
[404454892,1770150639196,-200.0,0.00047643,120]
[404454893,1770150639206,-772.76,0.000477,30]
[404454894,1770150639215,-508.36,0.00047727,120]
[404454895,1770150639226,-2000.0,0.00048,120]
[404454896,1770150639237,-1000.0,0.00048,120]
[404454897,1770150639247,-508.36,0.00048474,120]
[404454898,1770150639257,-2278.12,0.00048824,11]
[404454899,1770150639267,-2278.12,0.00048824,11]
[404454900,1770150639277,-56413.50073691,0.000489,120]
[404454917,1770150639934,-509.442235,0.000456,60]
[404454919,1770150639943,-689.163353,0.000456,60]
[404454921,1770150639953,-868.88447,0.000456,60]
[404454923,1770150639963,-1073.66,0.0004889,10]
[404454925,1770150639973,-546.06159927,0.000489,120]
[404454927,1770150639985,-825.6962295,0.000489,120]
[404454948,1770150640175,-3e-08,0.000489,120]
[404454950,1770150640186,-917.29001946,0.000489,120]
[404454952,1770150640197,-2107.13441652,0.000489,120]
[404455176,1770150643868,-2801.41093038,0.00039744,2]
[404455177,1770150643926,-501.37906962,0.00039744,2]
[404455178,1770150643936,-460.72143298,0.000456,60]
[404455179,1770150643947,-587.88415502,0.000456,60]
[404455180,1770150643958,-1228.326706,0.000456,60]
[404455181,1770150643968,-1408.047824,0.000456,60]
[404455182,1770150643978,-81.64320574,0.000456,60]
[404455207,1770150645898,-1506.12573526,0.000456,60]
[404455208,1770150645908,-100.91067383,0.000456,60]
[404455209,1770150645957,-1666.57938517,0.000456,60]
[404455210,1770150645967,-150.0,0.00046512,60]
[404455211,1770150645976,-256.983494,0.00046512,60]
[404455212,1770150645985,-363.966989,0.00046512,60]
[404455213,1770150645995,-470.950484,0.00046512,60]
[404455214,1770150646004,-11159.58296658,0.000489,120]
[404455215,1770150648166,-3012.72251891,0.000489,120]
[404455216,1770150665825,500.0,0.00013699,2]
[404455217,1770150672876,500.0,0.00013699,2]
[404455218,1770150678762,500.0,0.00013273,2]
[404455219,1770150678879,1000.0,0.00013821,2]
[404455220,1770150679003,500.0,0.00013699,2]
[404455221,1770150679030,619.58988389,0.00013273,2]
[404455222,1770150679958,500.0,0.00013699,2]
[404455223,1770150683184,500.0,0.00013699,2]
[404455224,1770150683252,500.0,0.00013699,2]
[404455225,1770150683306,500.0,0.00013699,2]
[404455226,1770150684402,843.43,0.00039809,120]
[404455227,1770150685171,237.37671403,0.00013699,2]
[404455228,1770150685645,500.0,0.00013699,2]
[404455229,1770150685737,500.0,0.00013273,2]
[404455230,1770150685778,1000.0,0.00013821,2]
[404455231,1770150686259,500.0,0.00013699,2]
[404455232,1770150726654,200.21728958,0.00013273,2]
[404455233,1770150726911,500.0,0.00013699,2]
[404455234,1770150727635,502.95309348,0.00013699,2]
[404455235,1770150727699,500.0,0.00013699,2]
[404455236,1770150732517,300.0,0.00013673,2]
[404455237,1770150783665,501.06198753,0.00013699,2]
[404455238,1770150783724,198.73051414,0.00013699,2]
[404455239,1770150786188,500.0,0.00013273,2]
[404455240,1770150786236,1000.0,0.00013821,2]
[404455241,1770150800734,1000.0,0.00013821,2]
[404455242,1770150800789,500.0,0.00013273,2]
[404455243,1770150802044,438.16441978,0.00013699,2]
[404455244,1770150805893,337.83295742,0.00013699,2]
[404455245,1770150807020,500.0,0.00013699,2]
[404455246,1770150841756,5000.0,0.00014,2]
[404455247,1770150843753,500.0,0.00013699,2]
[404455248,1770150848223,500.0,0.00013699,2]
[404455249,1770150848265,500.0,0.00013273,2]
[404455250,1770150848322,220.23495117,0.00013821,2]
[404455251,1770150865238,5000.0,0.00014,2]
[404455252,1770150887389,3557.92472778,0.00014,2]
[404455253,1770150906737,180.50448586,0.00013699,2]
[404455254,1770150923513,500.0,0.00013273,2]
[404455255,1770150923546,524.21433978,0.00013821,2]
[404455256,1770150926146,500.0,0.00013273,2]
[404455257,1770150926201,725.35356092,0.00013821,2]
[404455258,1770150928114,500.0,0.00013699,2]
[404455259,1770150964021,150.0,0.00013673,2]
[404455260,1770150964294,500.0,0.00013699,2]
[404455261,1770150964378,508.16028706,0.00013699,2]
[404455262,1770150964407,500.0,0.00013699,2]
[404455263,1770150964703,500.0,0.00013699,2]
[404455264,1770150968667,500.0,0.00013699,2]
[404455265,1770151024019,500.0,0.00013699,2]
[404455266,1770151024046,501.44248155,0.00013699,2]
[404455267,1770151027604,500.0,0.00013699,2]
[404455268,1770151045336,500.0,0.00013699,2]
[404455269,1770151047038,500.0,0.00013699,2]
[404455270,1770151048994,500.0,0.00013699,2]
[404455271,1770151083190,255.37586411,0.00013699,2]
[404455272,1770151084302,500.0,0.00013273,2]
[404455273,1770151084346,1000.0,0.00013821,2]
[404455274,1770151090355,225.49381677,0.00013699,2]
[404455275,1770151146526,1000.79142467,0.00013973,2]
[404455276,1770151152932,226.23097087,0.00013699,2]
[404455277,1770151165885,500.0,0.00013699,2]
[404455278,1770151165913,314.14228189,0.00013273,2]
[404455279,1770151165972,503.44585803,0.00013699,2]
[404455280,1770151166545,504.37145005,0.00013699,2]
[404455281,1770151167459,500.0,0.00013699,2]
[404455282,1770151225340,205.1489348,0.00013366,2]
[404455283,1770151263704,160.39462294,0.00013699,2]
[404455284,1770151263850,500.0,0.00013699,2]
[404455285,1770151263877,500.0,0.00013273,2]
[404455286,1770151263906,500.0,0.00013699,2]
[404455287,1770151263932,500.0,0.00013699,2]
[404455288,1770151263961,1000.0,0.00013821,2]
[404455289,1770151263993,500.0,0.00013273,2]
[404455290,1770151264020,500.0,0.00013821,2]
[404455291,1770151286022,500.0,0.00013699,2]
[404455292,1770151286854,646.3760695,0.00013273,2]
[404455293,1770151287538,500.75464569,0.00013699,2]
[404455294,1770151288243,500.0,0.00013699,2]
[404455295,1770151325456,240.85099911,0.00013699,2]
[404455345,1770151388925,607.95783441,0.00013699,2]
[404455346,1770151390298,500.0,0.00013699,2]
[404455347,1770151396237,3428.78379667,0.00013,2]
[404455349,1770151405897,500.0,0.00013273,2]
[404455350,1770151405926,1000.0,0.00013821,2]
[404455351,1770151408506,500.0,0.00013699,2]
[404455352,1770151408937,500.0,0.00013699,2]
[404455353,1770151409428,500.0,0.00013273,2]
[404455354,1770151409469,75.28665462,0.00013821,2]
[404455355,1770151409656,924.71334538,0.00013821,2]
[404455356,1770151410313,500.0,0.00013699,2]
[404455357,1770151419159,2259.00934458,0.00014,2]
[404455376,1770151503138,183.17981216,0.00013273,2]
[404455377,1770151503174,500.0,0.00013273,2]
[404455378,1770151503232,500.0,0.00013273,2]
[404455379,1770151503264,537.781784,0.00013273,2]
[404455380,1770151503292,1000.0,0.00013821,2]
[404455381,1770151503320,1000.0,0.00013821,2]
[404455382,1770151507730,928.45616591,0.00014,2]
[404455383,1770151522715,879.58594994,0.00014,2]
[404455384,1770151523947,500.0,0.00013699,2]
[404455385,1770151524038,287.28359803,0.00013699,2]
[404455386,1770151524066,245.83591974,0.00013699,2]
[404455387,1770151525646,500.0,0.00013699,2]
[404455388,1770151525681,500.0,0.00013699,2]
[404455389,1770151525897,502.44285859,0.00013699,2]
[404455390,1770151526401,375.44875461,0.00013699,2]
[404455391,1770151526583,500.0,0.00013273,2]
[404455392,1770151526632,1000.0,0.00013821,2]
[404455393,1770151569941,300.0,0.00013673,2]
[404455397,1770151623674,150.16676177,0.00013673,2]
[404455398,1770151623705,511.10142396,0.00013699,2]
[404455399,1770151626516,500.0,0.00013699,2]
[404455400,1770151626693,363.45307619,0.00013699,2]
[404455402,1770151643345,500.0,0.00013273,2]
[404455403,1770151643390,1000.0,0.00013821,2]
[404455405,1770151647124,500.0,0.00013699,2]
[404455407,1770151647578,500.0,0.00013699,2]
[404455409,1770151647943,500.0,0.00013699,2]
[404455411,1770151648385,500.0,0.00013273,2]
[404455412,1770151648413,1000.0,0.00013821,2]
[404455413,1770151687140,297.39712488,0.00013699,2]
[404455414,1770151687163,202.60287512,0.00013699,2]
[404455415,1770151687638,1000.0,0.00013821,2]
[404455416,1770151687706,500.0,0.00013273,2]
[404455417,1770151688489,300.0,0.00013673,2]
[404455418,1770151743180,384.175,0.00013699,2]
[404455419,1770151745879,505.2588656,0.00013273,2]
[404455420,1770151746508,500.0,0.00013699,2]
[404455421,1770151762430,155.51324143,0.00013273,2]
[404455422,1770151765124,-600.0,0.00014221,2]
[404455423,1770151765145,-150.0,0.00014227,2]
[404455424,1770151765166,-300.0,0.00014246,2]
[404455425,1770151765186,-807.30794303,0.00014247,2]
[404455426,1770151765206,-750.08643803,0.00014247,2]
[404455427,1770151765226,-572.53077608,0.00014247,2]
[404455428,1770151766368,500.0,0.00013273,2]
[404455429,1770151766431,1000.0,0.00013821,2]
[404455430,1770151766510,500.0,0.00013699,2]
[404455431,1770151766649,500.0,0.00013699,2]
[404455432,1770151767163,629.93934409,0.00013699,2]
[404455433,1770151767538,500.0,0.00013273,2]
[404455434,1770151767593,726.67584666,0.00013821,2]
[404455435,1770151811443,500.0,0.00013699,2]
[404455436,1770151811899,500.0,0.00013273,2]
[404455437,1770151811969,1000.0,0.00013821,2]
[404455438,1770151813633,95.8448271,0.00013673,2]
[404455439,1770151813655,204.1551729,0.00013673,2]
[404455452,1770151831794,-600.0,0.00014221,2]
[404455453,1770151831804,-483.37947545,0.00014247,2]
[404455454,1770151831814,-247.48561544,0.00014247,2]
[404456000,1770151837883,-252.51438456,0.00014247,2]
[404456002,1770151837893,-511.64534676,0.00014247,2]
[404456004,1770151837902,-608.27543567,0.00014247,2]
[404456006,1770151837911,-438.7586594,0.00014247,2]
[404456009,1770151837923,-561.2413406,0.00014247,2]
[404456011,1770151837932,-150.0,0.00014281,2]
[404456013,1770151837941,-171.072703,0.00014316,2]
[404456015,1770151837951,-3871.2454393,0.00014342,2]
[404456017,1770151837959,-600.0,0.00014368,2]
[404456019,1770151837968,-587.50026469,0.0001442,2]
[404456021,1770151837977,-500.0,0.0001442,2]
[404456023,1770151837987,-500.0,0.0001442,2]
[404456025,1770151837996,-500.0,0.0001442,2]
[404456027,1770151838005,-500.0,0.0001442,2]
[404456029,1770151838014,-500.0,0.0001442,2]
[404456031,1770151838023,-500.0,0.0001442,2]
[404456033,1770151838032,-500.0,0.0001442,2]
[404456035,1770151838041,-500.0,0.0001442,2]
[404456037,1770151838051,-500.0,0.0001442,2]
[404456039,1770151838061,-500.0,0.0001442,2]
[404456041,1770151838071,-479.33971381,0.0001442,2]
[404456043,1770151838080,-351.36266241,0.0001442,2]
[404456045,1770151838090,-500.0,0.0001442,2]
[404456047,1770151838099,-500.0,0.0001442,2]
[404456049,1770151838108,-500.0,0.0001442,2]
[404456051,1770151838120,-500.0,0.0001442,2]
[404456053,1770151838129,-500.0,0.0001442,2]
[404456055,1770151838142,-500.0,0.0001442,2]
[404456057,1770151838151,-500.0,0.0001442,2]
[404456059,1770151838161,-500.0,0.0001442,2]
[404456061,1770151838170,-242.09719538,0.0001442,2]
[404456063,1770151838179,-500.0,0.0001442,2]
[404456065,1770151838189,-500.0,0.0001442,2]
[404456082,1770151838339,-500.0,0.0001442,2]
[404456084,1770151838350,-153.34884199,0.00014768,2]
[404456276,1770151840195,-146.65115801,0.00014768,2]
[404456278,1770151840204,-1000.0,0.00014795,2]
[404456280,1770151840214,-2666.34779166,0.00015239,2]
[404456282,1770151840223,-177.0,0.00016281,2]
[404456284,1770151840233,-500.0,0.00016438,2]
[404456286,1770151840242,-500.0,0.00016438,2]
[404456288,1770151840251,-445.1132,0.00016438,2]
[404456290,1770151840260,-204.0,0.00018281,2]
[404456292,1770151840269,-231.0,0.00020281,2]
[404456295,1770151840278,-557.29593208,0.00021148,2]
[404456298,1770151840287,-280.23012907,0.00021186,2]
[404456300,1770151840296,-258.0,0.00022281,2]
[404456302,1770151840306,-1003.13267774,0.00023086,2]
[404456304,1770151840315,-504.41423232,0.00023129,2]
[404456306,1770151840324,-165.32055039,0.00024281,2]
[404456472,1770151842042,1057.5,0.00039784,20]
[404456524,1770151845318,-119.67944961,0.00024281,2]
[404456525,1770151845328,-631.0,0.0002493,2]
[404456526,1770151845338,-2154.0,0.0002493,2]
[404456527,1770151845347,-1783.34698264,0.00025023,2]
[404456528,1770151845356,-745.55262339,0.00025073,2]
[404456529,1770151845435,-151.18378962,0.00025073,2]
[404456530,1770151845444,-157.43321038,0.00025167,2]
[404456531,1770151845454,-884.23345629,0.00025167,2]
[404456532,1770151845464,-136.84943199,0.00025167,2]
[404456545,1770151846031,-604.06181224,0.00025167,2]
[404456546,1770151846042,-293.41,0.00026489,2]
[404456547,1770151846051,-629.0,0.0002793,2]
[404456548,1770151846060,-2148.0,0.0002793,2]
[404456549,1770151846070,-250.0,0.00031808,2]
[404456550,1770151846080,-250.0,0.00031808,2]
[404456551,1770151846090,-151.96396085,0.00031808,2]
[404456552,1770151846100,-250.0,0.00031808,2]
[404456553,1770151846110,-500.0,0.00031808,2]
[404456554,1770151846123,-250.0,0.00031808,2]
[404456555,1770151846132,-500.0,0.00031808,2]
[404456556,1770151846142,-250.0,0.00031808,2]
[404456557,1770151846151,-500.0,0.00031808,2]
[404456558,1770151846160,-250.0,0.00031808,2]
[404456559,1770151846169,-500.0,0.00031808,2]
[404456560,1770151846178,-250.0,0.00031808,2]
[404456561,1770151846187,-500.0,0.00031808,2]
[404456562,1770151846196,-250.0,0.00031808,2]
[404456563,1770151846206,-250.0,0.00031808,2]
[404456564,1770151846215,-500.0,0.00031808,2]
[404456565,1770151846224,-250.0,0.00031808,2]
[404456566,1770151846233,-250.0,0.00031808,2]
[404456567,1770151846243,-500.0,0.00031808,2]
[404456568,1770151846252,-250.0,0.00031808,2]
[404456569,1770151846261,-250.0,0.00031808,2]
[404456570,1770151846270,-500.0,0.00031808,2]
[404456571,1770151846279,-250.0,0.00031808,2]
[404456572,1770151846288,-250.0,0.00031808,2]
[404456573,1770151846297,-250.0,0.00031808,2]
[404456574,1770151846306,-503.25015551,0.00031808,2]
[404456575,1770151846316,-250.0,0.00031808,2]
[404456576,1770151846325,-250.0,0.00031808,2]
[404456577,1770151846334,-250.0,0.00031808,2]
[404456578,1770151846343,-250.0,0.00031808,2]
[404456579,1770151846352,-250.0,0.00031808,2]
[404456580,1770151846361,-250.0,0.00031808,2]
[404456581,1770151846372,-250.0,0.00031808,2]
[404456582,1770151846382,-250.0,0.00031808,2]
[404456583,1770151846391,-250.0,0.00031808,2]
[404456584,1770151846400,-250.0,0.00031808,2]
[404456585,1770151846409,-250.0,0.00031808,2]
[404456586,1770151846419,-500.0,0.00031808,2]
[404456587,1770151846428,-250.0,0.00031808,2]
[404456588,1770151846437,-250.0,0.00031808,2]
[404456589,1770151846446,-500.0,0.00031808,2]
[404456590,1770151846455,-250.0,0.00031808,2]
[404456591,1770151846464,-250.0,0.00031808,2]
[404456592,1770151846473,-500.0,0.00031808,2]
[404456593,1770151846482,-250.0,0.00031808,2]
[404456594,1770151846491,-500.0,0.00031808,2]
[404456595,1770151846500,-250.0,0.00031808,2]
[404456596,1770151846509,-500.0,0.00031808,2]
[404456597,1770151846518,-250.0,0.00031808,2]
[404456598,1770151846527,-500.0,0.00031808,2]
[404456599,1770151846536,-250.0,0.00031808,2]
[404456600,1770151846545,-500.0,0.00031808,2]
[404456601,1770151846555,-500.0,0.00031808,2]
[404456602,1770151846564,-500.0,0.00031808,2]
[404456603,1770151846573,-500.0,0.00031808,2]
[404456604,1770151846582,-500.0,0.00031808,2]
[404456605,1770151846591,-500.0,0.00031808,2]
[404456606,1770151846600,-500.0,0.00031808,2]
[404456607,1770151846609,-500.0,0.00031808,2]
[404456608,1770151846618,-500.0,0.00031808,2]
[404456609,1770151846629,-500.0,0.00031808,2]
[404456610,1770151846638,-500.0,0.00031808,2]
[404456611,1770151846647,-531.84839323,0.00031808,2]
[404456612,1770151846656,-250.0,0.00031808,2]
[404456613,1770151846665,-250.0,0.00031808,2]
[404456614,1770151846674,-250.0,0.00031808,2]
[404456615,1770151846684,-250.0,0.00031808,2]
[404456616,1770151846693,-250.0,0.00031808,2]
[404456617,1770151846702,-250.0,0.00031808,2]
[404456618,1770151846711,-250.0,0.00031808,2]
[404456619,1770151846720,-250.0,0.00031808,2]
[404456620,1770151846729,-250.0,0.00031808,2]
[404456621,1770151846739,-250.0,0.00031808,2]
[404456622,1770151846748,-250.0,0.00031808,2]
[404456623,1770151846757,-363.49209098,0.00032523,2]
[404456624,1770151846767,-205.456,0.00032623,33]
[404456625,1770151846780,-314.70829105,0.00033087,7]
[404456626,1770151846790,-158.2476023,0.00033087,7]
[404456627,1770151846799,-184.66394924,0.000332,117]
[404456628,1770151846809,-1257.57433105,0.00034658,7]
[404456629,1770151846818,-632.35741878,0.00034658,7]
[404456630,1770151846827,-363.49209094,0.00036867,2]
[404456631,1770151846836,-2000.0,0.00039784,20]
[404456632,1770151846845,-363.49209094,0.00041212,2]
[404456633,1770151846855,-182.18429807,0.0004268,7]
[404456634,1770151846864,-5000.0,0.00043,2]
[404456635,1770151846875,-363.49209094,0.00045556,2]
[404456636,1770151846884,-3470.0737499,0.00048083,2]
[404456637,1770151846893,-183.1998686,0.00048083,2]
[404456638,1770151846903,-5900.72,0.00048599,11]
[404456639,1770151846912,-24941.68,0.00048599,11]
[404456640,1770151846921,-980.39,0.00048889,10]
[404456641,1770151846931,-816.99,0.0004889,10]
[404456642,1770151846942,-680.83,0.0004889,10]
[404456643,1770151846952,-1041.66666667,0.00048899,120]
[404456644,1770151846961,-1252.87195289,0.00048899,120]
[404456645,1770151846970,-25545.51151282,0.000489,120]
[404456646,1770151846979,-2059.33,0.000489,14]
[404456647,1770151846988,-1000.0,0.00049,120]
[404456648,1770151846996,-823.14663654,0.00049,120]
[404456649,1770151847006,-300.0,0.00049205,60]
[404456650,1770151847016,-300.0,0.00049205,90]
[404456651,1770151847024,-172.988977,0.0004937,60]
[404456652,1770151847034,-3655.1656116,0.00049511,120]
[404456653,1770151847044,-423.92861045,0.000498,120]
[404456654,1770151847054,-2059.33,0.000498,14]
[404456655,1770151847065,-600.0,0.00049877,120]
[404456656,1770151847074,-363.49209094,0.000499,2]
[404456657,1770151847083,-1119.92391136,0.0004999,4]
[404456658,1770151847093,-225.14163773,0.0005,20]
[404456659,1770151847104,-8910.4946301,0.0005,120]
[404456660,1770151847113,-332.4563198,0.0005,120]
[404456661,1770151847125,-539.32530269,0.0005,10]
[404456662,1770151847135,-625.85948436,0.0005,120]
[404456663,1770151847144,-199.0,0.0005,7]
[404456664,1770151847153,-1037.16084597,0.0005,120]
[404456665,1770151847163,-978.62058295,0.0005,120]
[404456666,1770151847172,-184.97288394,0.0005,120]
[404456667,1770151847182,-189.67480457,0.0005,120]
[404456668,1770151847192,-341.68546137,0.0005,120]
[404456669,1770151847201,-12531.43119514,0.0005,120]
[404456670,1770151847870,-6392.4730504,0.0005,120]
[404456671,1770151863531,500.0,0.00013699,2]
[404456672,1770151864944,507.53793783,0.00013699,2]
[404456673,1770151865144,500.0,0.00013273,2]
[404456674,1770151865174,1000.0,0.00013821,2]
[404456675,1770151865210,500.0,0.00013273,2]
[404456676,1770151865271,1000.0,0.00013821,2]
[404456677,1770151866595,500.0,0.00013273,2]
[404456678,1770151866647,1000.0,0.00013821,2]
[404456679,1770151886348,500.0,0.00013273,2]
[404456680,1770151886505,500.0,0.00013821,2]
[404456681,1770151886691,500.0,0.00013699,2]
[404456682,1770151923623,500.0,0.00013699,2]
[404456683,1770151923876,500.0,0.00013699,2]
[404456684,1770151926835,500.0,0.00013273,2]
[404456685,1770151926867,1000.0,0.00013821,2]
[404456686,1770151928225,170.04904198,0.00039784,120]
[404456687,1770151930515,500.0,0.00013699,2]
[404456688,1770151930553,500.0,0.00013273,2]
[404456689,1770151930589,400.0,0.00013821,2]
[404456690,1770151930638,300.0,0.00013673,2]
[404456691,1770151998559,993.0,0.00039788,20]
[404456692,1770152006296,500.0,0.00013699,2]
[404456693,1770152045287,5000.0,0.00014,2]
[404456694,1770152047271,625.30852898,0.00013699,2]
[404456695,1770152047871,500.0,0.00013273,2]
[404456696,1770152047927,799.78271042,0.00013821,2]
[404456697,1770152048033,253.55778287,0.00013699,2]
[404456698,1770152051782,300.0,0.00013673,2]
[404456699,1770152051880,500.0,0.00013699,2]
[404456700,1770152052600,120.56860268,0.00013715,2]
[404456701,1770152066306,-315.97182897,0.00013715,2]
[404456702,1770152067698,-563.45956835,0.00013715,2]
[404456703,1770152069826,3904.98930024,0.00013559,2]
[404456704,1770152121404,500.0,0.00013273,2]
[404456705,1770152124120,500.0,0.00013273,2]
[404456706,1770152124404,500.0,0.00013699,2]
[404456707,1770152125005,-427.17380231,0.00013821,2]
[404456708,1770152135147,3468.10156306,0.00013715,2]
[404456709,1770152135171,1531.89843694,0.00013715,2]
[404456710,1770152157289,1044.31803014,0.00013715,2]
[404456711,1770152163853,189.83636089,0.00013699,2]
[404456712,1770152168224,300.0,0.00013673,2]
[404456713,1770152168340,500.0,0.00013699,2]
[404456714,1770152176847,5961.3454999,0.00013463,2]
[404456715,1770152246787,472.61167213,0.00013699,2]
[404456716,1770152246810,27.38832787,0.00013699,2]
[404456717,1770152251021,5000.0,0.00013715,2]
[404456718,1770152266050,1446.15612428,0.00013715,2]
[404456719,1770152275075,3526.46554785,0.00013715,2]
[404456720,1770152275100,870.04197529,0.00013715,2]
[404456721,1770152290851,500.0,0.00013699,2]
[404456722,1770152290879,300.0,0.00013673,2]
[404456723,1770152343519,500.0,0.00013273,2]
[404456724,1770152346529,194.08711327,0.00013699,2]
[404456725,1770152347380,-285.89128994,0.00013821,2]
[404456726,1770152348145,500.0,0.00013699,2]
[404456727,1770152359659,285.89128994,0.00013273,2]
[404456728,1770152364583,315.60464518,0.00013273,2]
[404456729,1770152365474,500.0,0.00013699,2]
[404456730,1770152366314,389.41572401,0.00013699,2]
[404456731,1770152366337,110.58427599,0.00013699,2]
[404456732,1770152367877,500.0,0.00013699,2]
[404456733,1770152380406,4380.77642797,0.00013715,2]
[404456734,1770152408487,503.90866418,0.00013699,2]
[404456735,1770152408692,500.0,0.00013699,2]
[404456736,1770152412427,39.11560818,0.00013673,2]
[404456737,1770152412451,260.88439182,0.00013673,2]
[404456738,1770152412809,500.0,0.00013699,2]
[404456739,1770152429813,175.279485,0.00013332,2]
[404456740,1770152463767,214.72667318,0.00013273,2]
[404456741,1770152464068,500.0,0.00013699,2]
[404456742,1770152464100,500.0,0.00013273,2]
[404456743,1770152464235,500.0,0.00013273,2]
[404456744,1770152464312,160.80663478,0.00013699,2]
[404456745,1770152464346,500.0,0.00013273,2]
[404456746,1770152464404,567.81536464,0.00013699,2]
[404456747,1770152467101,500.0,0.00013699,2]
[404456748,1770152468371,500.0,0.00013699,2]
[404456749,1770152468402,375.33030032,0.00013273,2]
[404456750,1770152476933,500.0,0.00013699,2]
[404456751,1770152477364,605.95030469,0.00013699,2]
[404456752,1770152481380,514.08542369,0.00013699,2]
[404456753,1770152483691,500.0,0.00013699,2]
[404456754,1770152484422,600.85025751,0.00013699,2]
[404456755,1770152484960,187.0405196,0.00013699,2]
[404456756,1770152486486,500.0,0.00013699,2]
[404456757,1770152486584,615.34926267,0.00013699,2]
[404456758,1770152487438,500.0,0.00013699,2]